bitfinex-derivatives/quotes_ETHF0:USTF0_20250106
["timestamp","ask_amount","ask_price","bid_price","bid_amount"]
[1736148696079,0.78067,3650.9,3650.8,41.07397]
[1736148696279,0.5067,3650.9,3650.8,41.07397]
[1736148700281,3.48176,3651.1,3651.0,0.27396]
[1736148700483,3.96966,3651.1,3651.0,0.27396]
[1736148701391,0.27396,3651.0,3650.9,0.27396]
[1736148701785,3.96966,3651.1,3651.0,0.27396]
[1736148702181,0.27397,3650.9,3650.8,41.07397]
[1736148702398,3.96966,3651.1,3651.0,0.27396]
[1736148703595,3.6957,3651.1,3651.0,0.27396]
[1736148704191,3.2078,3651.1,3651.0,0.27396]
[1736148704394,3.2078,3651.1,3651.0,0.75256]
[1736148706098,3.48175,3651.1,3651.0,0.75256]
[1736148706293,3.2078,3651.1,3651.0,0.75256]
[1736148707593,3.48175,3651.1,3651.0,0.75256]
[1736148707799,3.2078,3651.1,3651.0,0.75256]
[1736148708192,3.2078,3651.1,3651.0,0.27396]
[1736148708400,3.48175,3651.1,3651.0,0.27396]
[1736148708601,3.2078,3651.1,3651.0,0.27396]
[1736148708800,3.48175,3651.1,3651.0,0.27396]
[1736148710199,3.2078,3651.1,3651.0,0.27396]
[1736148710802,3.48175,3651.1,3651.0,0.27396]
[1736148712300,3.2078,3651.1,3651.0,0.27396]
[1736148714299,3.48175,3651.1,3651.0,0.27396]
[1736148714701,3.2078,3651.1,3650.8,40.8]
[1736148715200,0.27397,3650.9,3650.8,40.8]
[1736148716401,3.2078,3651.1,3650.4,0.5219]
[1736148716703,0.27401,3650.5,3650.4,0.274]
[1736148716904,0.27401,3650.5,3650.4,41.074]
[1736148718205,0.80839,3650.6,3650.5,0.274]
[1736148718401,0.5344,3650.6,3650.4,40.8]
[1736148718707,0.8084,3650.6,3650.5,0.274]
[1736148719601,0.274,3650.5,3650.4,41.074]
[1736148720003,0.5344,3650.6,3650.4,41.074]
[1736148720004,0.8084,3650.6,3650.5,0.274]
[1736148720598,0.274,3650.5,3650.4,40.8]
[1736148720809,0.27401,3650.3,3650.2,6.45688084]
[1736148721007,6.49533811,3650.3,3650.0,8.60917446]
[1736148721206,0.27403,3650.1,3650.0,8.60917446]
[1736148722704,0.27407,3649.6,3649.5,40.8]
[1736148722904,3.48187,3649.6,3649.5,40.8]
[1736148723304,0.2741,3649.1,3649.0,0.4821]
[1736148723501,0.27413,3648.8,3648.7,15.70778294]
[1736148723709,0.27411,3649.0,3648.7,40.8]
[1736148723910,3.2078,3649.1,3648.7,40.8]
[1736148723911,0.27413,3648.8,3648.7,40.8]
[1736148724113,3.2078,3649.1,3648.6,8.60917446]
[1736148724114,0.27413,3648.7,3648.6,8.60917446]
[1736148724303,3.97523,3648.7,3648.6,8.60917446]
[1736148725514,0.27414,3648.6,3648.5,40.8]
[1736148728212,5.0,3648.6,3647.8,0.4833]
[1736148728413,0.27421,3647.7,3647.5,0.4927]
[1736148728609,0.27422,3647.6,3647.5,0.4927]
[1736148728819,0.27422,3647.6,3647.5,41.2927]
[1736148732115,0.27422,3647.6,3647.5,40.8]
[1736148732519,0.27427,3646.9,3646.8,0.4822]
[1736148732916,0.27427,3646.9,3646.8,41.2822]
[1736148734021,0.27426,3647.0,3646.8,41.2822]
[1736148734523,0.27427,3646.9,3646.8,40.8]
[1736148734915,0.2743,3646.5,3646.2,0.4837]
[1736148735115,0.27431,3646.3,3646.2,0.4837]
[1736148735316,3.28753811,3646.5,3645.5,0.27437]
[1736148735516,3.2078,3645.8,3645.6,0.4937]
[1736148735719,3.2078,3645.8,3645.6,0.76807]
[1736148735920,3.48215,3645.8,3645.7,40.8]
[1736148738317,4.57515,3645.8,3645.7,40.8]
[1736148739020,3.48215,3645.8,3645.7,40.8]
[1736148739218,3.2078,3645.8,3645.7,40.8]
[1736148739625,3.2078,3645.8,3645.7,41.07436]
[1736148740517,3.48215,3645.8,3645.7,40.8]
[1736148741522,3.2078,3645.8,3645.7,41.07436]
[1736148741819,3.2078,3646.4,3646.3,0.27431]
[1736148742024,3.2078,3646.4,3646.3,2.46984811]
[1736148742620,3.2078,3647.2,3646.3,5.40333811]
[1736148742823,3.2078,3647.2,3647.1,0.27425]
[1736148743225,3.2078,3647.2,3647.1,41.07425]
[1736148743922,3.2078,3647.2,3647.1,40.8]
[1736148744328,3.2078,3647.2,3647.1,41.07425]
[1736148744824,3.2078,3647.2,3647.1,40.8]
[1736148746124,3.48205,3647.2,3647.1,40.8]
[1736148746530,0.27427,3647.0,3646.8,0.27427]
[1736148747028,2.88101811,3648.0,3646.8,0.27427]
[1736148747029,3.2078,3647.8,3646.8,42.99553811]
[1736148747225,3.482,3647.8,3647.6,0.27421]
[1736148747425,3.482,3647.8,3647.1,5.40333811]
[1736148747426,3.2078,3647.8,3647.1,3.2078]
[1736148748139,0.27422,3647.6,3647.1,3.2078]
[1736148748326,0.27424,3647.4,3647.2,0.27424]
[1736148748630,0.27423,3647.5,3647.2,0.27424]
[1736148748825,5.40333811,3647.8,3647.3,0.4876]
[1736148749023,0.27422,3647.6,3647.4,0.27423]
[1736148749226,3.2078,3647.8,3647.3,0.4876]
[1736148749435,0.27422,3647.6,3647.3,0.76183]
[1736148749935,0.27422,3647.6,3647.4,0.27423]
[1736148750135,0.27422,3647.7,3647.4,0.27423]
[1736148750329,3.482,3647.8,3647.3,0.4876]
[1736148750532,3.2078,3647.8,3647.3,0.4876]
[1736148750722,4.00607,3648.3,3647.4,2.19553811]
[1736148751032,0.27418,3648.1,3647.9,0.27419]
[1736148751236,3.2078,3648.3,3647.5,0.4929]
[1736148751527,0.27418,3648.1,3647.9,0.27419]
[1736148752032,0.27418,3648.2,3648.0,0.27419]
[1736148752528,3.2078,3648.3,3647.5,0.4929]
[1736148752833,3.48196,3648.3,3648.1,0.27418]
[1736148753023,0.5054,3648.5,3648.1,0.27418]
[1736148753024,0.5054,3648.5,3648.1,40.8]
[1736148753431,0.27416,3648.4,3648.2,0.27417]
[1736148753932,0.27416,3648.4,3647.6,3.2078]
[1736148753933,3.2078,3648.4,3647.6,3.2078]
[1736148754130,3.2078,3648.4,3647.6,44.0078]
[1736148754628,3.2078,3648.4,3647.9,0.27419]
[1736148754629,0.27418,3648.1,3647.9,0.27419]
[1736148755132,0.27418,3648.2,3647.6,44.0078]
[1736148755527,0.27418,3648.2,3648.0,0.27419]
[1736148755929,0.27417,3648.3,3648.1,0.27418]
[1736148756238,0.27418,3648.2,3648.1,0.27418]
[1736148756422,3.2078,3648.4,3648.1,0.27418]
[1736148756623,0.27417,3648.3,3648.1,0.27418]
[1736148756825,3.2078,3648.4,3647.7,0.5178]
[1736148757035,0.27417,3648.2,3648.0,0.27418]
[1736148757529,0.27417,3648.3,3648.1,0.27418]
[1736148757736,3.48196,3648.4,3648.2,0.27417]
[1736148758037,3.2078,3648.4,3648.3,0.27416]
[1736148759235,3.2078,3648.4,3648.3,2.46969811]
[1736148759536,0.5232,3648.7,3648.5,0.27414]
[1736148759537,0.27414,3648.7,3648.5,0.27414]
[1736148759726,0.27414,3648.7,3648.6,40.8]
[1736148761427,0.30838968,3648.9,3648.2,0.27417]
[1736148761633,0.27415,3648.5,3648.2,0.27417]
[1736148761834,0.27415,3648.6,3648.3,0.27416]
[1736148762036,0.27415,3648.6,3648.4,0.27415]
[1736148762539,0.30838968,3648.9,3648.8,0.27413]
[1736148763836,0.58250968,3648.9,3648.6,0.27413]
[1736148764141,0.58250968,3648.9,3648.4,0.5186]
[1736148764142,0.30838968,3648.9,3648.8,0.27413]
[1736148764939,0.58251968,3648.9,3648.7,0.27413]
[1736148765242,0.27413,3648.8,3648.4,0.5186]
[1736148765440,0.27413,3648.8,3648.6,0.27414]
[1736148765641,0.27413,3648.8,3648.3,42.99553811]
[1736148765843,0.27413,3648.8,3648.7,0.27413]
[1736148766432,0.30838968,3648.9,3648.7,0.27413]
[1736148766635,0.58250968,3648.9,3648.7,0.27413]
[1736148767644,0.27413,3648.8,3648.7,0.27413]
[1736148767945,0.58250968,3648.9,3648.8,0.27413]
[1736148768144,0.30838968,3648.9,3648.8,0.27413]
[1736148769343,0.58250968,3648.9,3648.8,0.27413]
[1736148769647,0.58250968,3648.9,3648.3,46.20333811]
[1736148769648,0.27413,3648.8,3648.7,0.27413]
[1736148770646,0.30838968,3648.9,3648.3,46.20333811]
[1736148770847,0.58250968,3648.9,3648.8,0.27413]
[1736148771048,0.30838968,3648.9,3648.8,0.27413]
[1736148772152,0.30838968,3648.9,3648.4,0.6854]
[1736148772153,3.2078,3649.1,3648.6,2.19553811]
[1736148772350,3.2078,3649.1,3649.0,0.27411]
[1736148772848,3.2078,3649.5,3649.4,0.27408]
[1736148773045,3.48187,3649.5,3649.4,0.27408]
[1736148773347,3.48187,3649.5,3649.4,41.07408]
[1736148774053,3.2078,3649.5,3649.4,41.07408]
[1736148775445,3.2078,3649.9,3649.8,0.27404]
[1736148775851,3.48185,3649.9,3649.8,0.27405]
[1736148776251,3.2078,3649.9,3649.8,0.27405]
[1736148776453,3.48184,3649.9,3649.8,0.27405]
[1736148776648,3.2078,3649.9,3649.8,0.27405]
[1736148776854,0.5293,3650.0,3649.8,0.27405]
[1736148777149,0.5293,3650.0,3649.9,0.27404]
[1736148777354,0.78862,3650.2,3650.1,0.27403]
[1736148777551,0.78862,3650.2,3649.9,0.5193]
[1736148777754,0.27402,3650.2,3649.9,0.5193]
[1736148777950,3.2078,3650.3,3650.2,0.27402]
[1736148778149,0.52,3650.4,3650.1,5.40333811]
[1736148778357,0.524,3650.6,3650.1,5.40333811]
[1736148778358,0.524,3650.6,3650.5,0.274]
[1736148778653,0.27399,3650.6,3650.5,0.27399]
[1736148778855,0.52,3650.8,3650.1,5.40333811]
[1736148778856,0.27402,3650.3,3650.1,0.27402]
[1736148779054,0.27403,3650.1,3649.9,0.79334]
[1736148779251,0.27404,3650.0,3649.9,0.5193]
[1736148779455,0.52,3650.0,3649.9,0.79334]
[1736148780657,0.27402,3650.3,3650.1,0.27402]
[1736148780859,0.27403,3650.2,3650.0,0.27404]
[1736148781260,0.27403,3650.1,3650.0,0.27404]
[1736148781460,0.4965,3650.4,3650.1,0.27403]
[1736148781659,0.4965,3650.4,3650.0,0.27403]
[1736148781660,0.27403,3650.2,3650.0,0.27403]
[1736148781959,0.27403,3650.2,3649.9,0.5193]
[1736148782165,3.2078,3650.5,3650.3,0.27401]
[1736148782660,3.2078,3650.5,3650.4,0.27401]
[1736148782858,0.27403,3650.2,3650.0,0.27403]
[1736148783055,3.2078,3650.5,3649.7,0.5336]
[1736148783260,0.27402,3650.3,3650.1,0.27402]
[1736148783462,0.27401,3650.3,3650.2,0.27402]
[1736148784470,0.27402,3650.3,3650.1,0.27403]
[1736148784664,0.27404,3650.0,3649.8,0.27404]
[1736148784864,0.27405,3649.8,3649.7,0.5336]
[1736148785067,0.27405,3649.8,3649.6,0.27406]
[1736148785365,0.5177,3649.7,3649.6,0.27406]
[1736148786866,0.5313,3649.9,3649.6,2.19553811]
[1736148787066,3.2078,3650.1,3650.0,0.27404]
[1736148787869,3.2078,3650.1,3650.0,0.79044]
[1736148788069,3.2078,3650.1,3650.0,41.59044]
[1736148788466,0.5368,3650.8,3650.0,41.59044]
[1736148788763,3.2078,3650.6,3650.0,41.3164]
[1736148788972,3.2078,3650.6,3650.0,40.8]
[1736148789271,0.27402,3650.3,3650.2,0.27402]
[1736148789467,3.2078,3650.6,3650.0,40.8]
[1736148789672,3.2078,3650.6,3650.5,0.274]
[1736148790065,3.2078,3651.1,3650.5,2.19553811]
[1736148790271,3.2078,3651.1,3651.0,0.27396]
[1736148790572,0.27395,3651.2,3651.1,0.27395]
[1736148791265,5.33302298,3651.5,3650.6,1.0224]
[1736148791469,0.27394,3651.3,3651.2,0.27395]
[1736148791667,0.27395,3651.2,3651.1,0.27395]
[1736148792367,3.2078,3651.5,3650.6,4.2302]
[1736148792674,0.27397,3650.9,3650.8,0.27398]
[1736148793069,0.5104,3651.1,3650.8,0.27398]
[1736148793070,0.533,3651.0,3650.8,0.27398]
[1736148793465,0.80696,3651.0,3650.8,0.27397]
[1736148793669,0.533,3651.0,3650.9,0.27397]
[1736148794368,3.2078,3651.5,3650.9,40.8]
[1736148794568,3.2078,3651.5,3651.4,0.27393]
[1736148794971,3.48172,3651.5,3651.4,0.27393]
[1736148795373,3.2078,3651.5,3651.4,0.27393]
[1736148795673,3.48172,3651.5,3651.4,0.27393]
[1736148795874,3.2078,3651.5,3651.2,0.4971]
[1736148796170,0.27394,3651.3,3651.2,0.4971]
[1736148796376,0.27395,3651.2,3651.1,0.27395]
[1736148796565,3.2078,3651.5,3650.9,40.8]
[1736148796771,0.27396,3651.0,3650.9,40.8]
[1736148797168,0.76136,3651.0,3650.9,40.8]
[1736148797376,0.76136,3651.0,3650.9,41.07397]
[1736148797873,0.76136,3651.0,3650.9,40.8]
[1736148799677,3.96916,3651.0,3650.9,40.8]
[1736148799872,3.6952,3651.0,3650.2,2.69243811]
[1736148800176,0.27399,3650.7,3650.5,0.274]
[1736148800376,0.27399,3650.7,3650.6,41.07399]
[1736148800579,0.27399,3650.7,3650.6,40.8]
[1736148801678,0.27399,3650.7,3650.6,41.07399]
[1736148801974,3.6952,3651.0,3650.9,0.27397]
[1736148802678,3.2078,3651.0,3650.9,0.27397]
[1736148803078,3.2078,3651.0,3650.9,0.81357]
[1736148803280,3.7138,3651.5,3651.4,0.27393]
[1736148803579,2.12522298,3651.8,3651.7,0.27391]
[1736148803779,2.12522298,3651.8,3651.7,41.07391]
[1736148804080,3.4817,3651.9,3651.8,0.2739]
[1736148804971,3.2078,3651.9,3651.7,40.8]
[1736148805174,0.2739,3651.8,3651.7,41.0739]
[1736148805874,3.2078,3651.9,3651.8,0.2739]
[1736148806086,3.4817,3651.9,3651.7,41.0739]
[1736148806374,3.2078,3651.9,3651.8,0.2739]
[1736148808179,0.506,3652.0,3651.7,40.8]
[1736148808478,0.27387,3652.2,3651.8,0.2739]
[1736148808678,3.2078,3652.3,3651.7,41.2979]
[1736148808878,3.2078,3652.3,3651.8,0.2739]
[1736148809179,0.2739,3651.9,3651.8,0.2739]
[1736148809978,3.2078,3652.3,3651.7,40.8]
[1736148810174,0.27388,3652.2,3652.1,0.27388]
[1736148810376,3.48167,3652.3,3652.1,0.27388]
[1736148810574,3.2078,3652.3,3652.2,0.27387]
[1736148811079,3.2078,3652.3,3652.0,0.5247]
[1736148811382,3.98716,3652.4,3652.2,0.27387]
[1736148811577,3.7133,3652.4,3652.0,0.5247]
[1736148811881,3.98716,3652.4,3652.2,0.27387]
[1736148812075,3.98716,3652.4,3652.1,0.27387]
[1736148812076,0.27387,3652.3,3652.1,0.27387]
[1736148812277,0.27388,3652.1,3652.0,0.5247]
[1736148813572,2.88022811,3652.2,3651.0,2.19553811]
[1736148813775,0.27393,3651.4,3651.3,0.27394]
[1736148813969,0.27393,3651.4,3651.2,0.27394]
[1736148814175,0.27395,3651.2,3651.1,0.5043]
[1736148814371,0.27395,3651.2,3650.7,2.19553811]
[1736148814372,0.27396,3651.1,3650.9,0.27396]
[1736148814572,3.2078,3651.2,3651.0,40.8]
[1736148814785,0.27395,3651.1,3651.0,40.8]
[1736148816785,0.80915,3651.1,3651.0,40.8]
[1736148817583,0.27402,3650.2,3650.1,3.52626811]
[1736148817978,0.27402,3650.2,3650.1,44.32626811]
[1736148818681,0.27402,3650.2,3650.1,40.8]
[1736148819579,3.48182,3650.2,3650.1,40.8]
[1736148824085,3.2078,3650.2,3650.1,40.8]
[1736148824283,3.2078,3650.2,3650.1,41.07403]
[1736148824479,3.2078,3650.2,3650.1,43.26956811]
[1736148825287,3.2078,3650.6,3650.1,43.26956811]
[1736148825487,0.27401,3650.3,3650.1,43.26956811]
[1736148825693,0.274,3650.5,3650.3,0.27401]
[1736148825889,0.27401,3650.4,3650.2,0.27402]
[1736148826091,0.27402,3650.2,3650.1,40.8]
[1736148826588,3.2078,3650.6,3650.1,40.8]
[1736148826788,3.2078,3650.6,3650.1,41.07403]
[1736148826989,3.4818,3650.6,3650.2,2.19553811]
[1736148827192,3.2078,3650.6,3650.4,0.274]
[1736148827691,0.27399,3650.6,3650.4,0.274]
[1736148828197,0.274,3650.6,3650.3,0.76681]
[1736148829488,0.274,3650.5,3650.3,0.76681]
[1736148829689,0.27401,3650.4,3650.3,0.4928]
[1736148829989,3.48179,3650.6,3650.4,0.274]
[1736148830195,3.2078,3650.6,3650.5,0.274]
[1736148830990,3.2078,3650.6,3650.4,0.5318]
[1736148831190,3.2078,3650.6,3650.3,0.4928]
[1736148831389,0.27401,3650.4,3650.3,0.4928]
[1736148832788,3.2078,3650.6,3650.3,0.4928]
[1736148833096,3.2078,3650.6,3650.5,0.274]
[1736148834386,3.2078,3650.6,3650.5,2.46953811]
[1736148834994,3.2078,3651.0,3650.5,2.19553811]
[1736148835288,0.27398,3650.8,3650.5,2.19553811]
[1736148835489,3.2078,3651.0,3650.5,2.19553811]
[1736148835686,0.27398,3650.8,3650.6,0.27399]
[1736148835885,3.2078,3651.0,3650.5,2.19553811]
[1736148836089,3.2078,3651.0,3650.8,0.27398]
[1736148836090,0.27397,3650.9,3650.8,0.27398]
[1736148836291,3.2078,3651.0,3650.5,2.19553811]
[1736148836491,3.2078,3651.0,3650.9,0.27397]
[1736148836887,3.2078,3651.0,3650.9,1.29837]
[1736148837396,3.2078,3651.0,3650.9,42.09837]
[1736148841593,3.2078,3651.0,3650.9,1.29837]
[1736148842293,3.2078,3651.0,3650.5,2.19553811]
[1736148842495,0.27399,3650.6,3650.5,0.27399]
[1736148842894,0.274,3650.6,3650.4,0.7927]
[1736148843096,0.274,3650.6,3650.5,0.274]
[1736148843400,3.48179,3650.6,3650.5,40.8]
[1736148843992,3.48179,3650.6,3650.5,41.074]
[1736148844294,3.48179,3650.6,3650.5,40.8]
[1736148844495,5.40333811,3650.6,3649.6,7.6735457]
[1736148844689,3.2078,3650.1,3649.7,0.27405]
[1736148844891,0.27405,3649.9,3649.8,40.8]
[1736148845090,0.27405,3649.9,3649.8,41.07405]
[1736148845491,0.27405,3649.9,3649.8,40.8]
[1736148845692,0.27405,3649.9,3649.8,41.07405]
[1736148845693,0.27404,3649.9,3649.8,41.07405]
[1736148845893,0.80204,3649.9,3649.8,41.07405]
[1736148846286,0.80204,3649.9,3649.8,40.8]
[1736148846698,0.80204,3649.9,3649.8,41.07405]
[1736148846998,0.80204,3649.9,3649.8,40.8]
[1736148847192,0.80204,3649.9,3649.8,41.07405]
[1736148848693,0.528,3649.9,3649.8,41.07405]
[1736148849901,0.5329,3650.0,3649.8,40.8]
[1736148850196,0.5329,3650.0,3649.9,0.27404]
[1736148851396,3.2078,3650.1,3649.8,40.8]
[1736148851596,3.2078,3650.1,3650.0,0.27404]
[1736148852306,3.48183,3650.1,3650.0,0.27404]
[1736148852598,3.2078,3650.1,3650.0,0.27404]
[1736148853805,3.2078,3650.1,3650.0,0.81294]
[1736148860209,3.2078,3650.1,3650.0,0.27404]
[1736148860711,3.2078,3650.1,3650.0,41.07404]
[1736148861611,3.2078,3650.1,3650.0,41.60094]
[1736148862912,2.39923298,3650.4,3650.3,0.27401]
[1736148863208,5.60703298,3650.4,3650.3,0.27401]
[1736148869910,5.33302298,3650.4,3650.3,0.27401]
[1736148870109,2.12522298,3650.4,3650.3,0.27401]
[1736148870710,2.12522298,3650.4,3650.3,41.07401]
[1736148871514,2.12522298,3650.4,3650.3,44.28181]
[1736148871825,2.12725742,3650.9,3650.8,0.27398]
[1736148872110,2.12725742,3650.9,3650.8,2.46951811]
[1736148873220,0.5541,3651.4,3650.8,2.19553811]
[1736148873419,0.82803,3651.4,3651.3,0.27394]
[1736148873718,0.5541,3651.4,3651.3,0.27394]
[1736148874117,0.5541,3651.4,3651.3,41.07394]
[1736148874413,0.82803,3651.4,3651.3,40.8]
[1736148874621,0.82803,3651.4,3651.1,0.27395]
[1736148874622,0.27395,3651.1,3651.0,0.27396]
[1736148875106,0.27396,3651.0,3650.9,0.27397]
[1736148875911,1.1122,3651.4,3651.3,0.27394]
[1736148876710,0.5541,3651.4,3651.3,0.27394]
[1736148877418,0.5541,3651.4,3651.3,41.07394]
[1736148880817,0.5581,3651.8,3651.7,0.27391]
[1736148881021,3.18943256,3652.0,3651.9,0.27389]
[1736148881320,3.18943256,3652.0,3651.9,2.46942811]
[1736148882117,3.18943256,3652.0,3651.8,0.2739]
[1736148882320,3.18943256,3652.0,3651.6,2.46944811]
[1736148882520,0.27391,3651.7,3651.6,0.27391]
[1736148882815,3.2078,3651.9,3651.3,42.99553811]
[1736148883023,0.5318,3651.6,3651.3,42.99553811]
[1736148883218,0.5318,3651.6,3651.5,0.27392]
[1736148887418,0.27393,3651.5,3651.4,0.27393]
[1736148888118,0.5318,3651.6,3651.3,42.99553811]
[1736148888315,0.5318,3651.6,3651.5,0.27392]
[1736148888519,0.80572,3651.6,3651.5,0.27392]
[1736148889319,0.5318,3651.6,3651.5,0.27392]
[1736148890021,0.5318,3651.6,3651.3,42.99553811]
[1736148890329,0.80572,3651.6,3651.5,0.27392]
[1736148890523,0.5318,3651.6,3651.5,0.27392]
[1736148892024,3.2078,3651.9,3651.3,42.99553811]
[1736148892219,0.8161,3651.8,3651.7,0.2739]
[1736148892419,0.5422,3651.8,3651.7,0.2739]
[1736148893013,0.8161,3651.8,3651.7,0.2739]
[1736148894127,0.5422,3651.8,3651.7,0.2739]
[1736148895020,3.2078,3651.9,3651.8,0.2739]
[1736148895732,3.48169,3651.9,3651.8,0.2739]
[1736148896230,3.2078,3651.9,3651.8,0.2739]
[1736148897223,3.2078,3651.9,3651.8,0.825]
[1736148897428,0.5614,3652.1,3652.0,0.27389]
[1736148898622,0.5614,3652.1,3651.9,2.19553811]
[1736148898823,0.27389,3652.0,3651.9,2.46942811]
[1736148899931,0.2739,3651.8,3651.7,0.2739]
[1736148900632,3.2078,3652.0,3651.6,2.19553811]
[1736148900826,3.2078,3652.0,3651.3,2.19553811]
[1736148901033,0.27395,3651.2,3651.1,0.27395]
[1736148901232,0.27395,3651.1,3651.0,0.82106]
[1736148901426,1.41295,3651.1,3651.0,0.82106]
[1736148901728,0.27398,3650.8,3650.7,4.27865643]
[1736148901936,0.27398,3650.8,3650.7,4.55263643]
[1736148902327,3.7322,3651.0,3650.7,4.55263643]
[1736148902729,3.7322,3651.0,3650.7,4.27865643]
[1736148902730,0.27398,3650.8,3650.7,4.27865643]
[1736148903034,0.27401,3650.3,3650.1,0.27402]
[1736148903331,0.5326,3650.2,3650.1,0.27402]
[1736148904435,3.2078,3650.5,3649.9,2.19553811]
[1736148904626,0.27398,3650.7,3650.5,0.274]
[1736148905134,3.7601,3650.9,3650.1,1.0605]
[1736148905338,0.274,3650.5,3650.3,0.27401]
[1736148905832,3.7601,3650.9,3650.2,2.19553811]
[1736148906030,0.27399,3650.6,3650.4,0.274]
[1736148906234,3.7601,3650.9,3650.2,2.19553811]
[1736148906434,0.27398,3650.8,3650.6,0.27399]
[1736148907234,0.27399,3650.7,3650.5,2.46953811]
[1736148907433,0.27399,3650.6,3650.5,2.19553811]
[1736148907833,0.27398,3650.8,3650.6,0.27399]
[1736148908036,3.7601,3650.9,3650.6,0.27399]
[1736148908231,0.27398,3650.8,3650.6,0.27399]
[1736148909228,3.7601,3650.9,3650.5,2.19553811]
[1736148909533,0.27398,3650.7,3650.5,2.46952811]
[1736148910438,0.27399,3650.7,3650.5,2.46952811]
[1736148910629,3.7601,3650.9,3650.5,2.19553811]
[1736148910831,3.7601,3650.9,3650.2,2.19553811]
[1736148911026,0.274,3650.5,3650.3,0.27401]
[1736148911445,3.7601,3650.9,3650.2,2.19553811]
[1736148911634,3.7601,3650.9,3650.1,0.5311]
[1736148911943,0.27401,3650.4,3650.2,0.27402]
[1736148912938,0.27401,3650.4,3650.3,0.27401]
[1736148913130,0.27401,3650.4,3650.2,0.27402]
[1736148914034,0.27401,3650.4,3650.1,0.5311]
[1736148914236,0.27401,3650.4,3650.3,0.27401]
[1736148914834,0.27401,3650.4,3650.1,0.5311]
[1736148914835,0.27401,3650.3,3650.2,0.27402]
[1736148915841,3.2078,3650.5,3649.8,2.19553811]
[1736148916035,0.5475,3650.2,3649.8,2.19553811]
[1736148916239,0.5633,3650.1,3649.8,2.19553811]
[1736148916434,0.83733,3650.1,3649.8,2.19553811]
[1736148916636,0.83733,3650.1,3650.0,0.27404]
[1736148916845,0.83733,3650.1,3649.8,2.19553811]
[1736148917142,0.83733,3650.1,3649.9,0.27404]
[1736148917942,0.83733,3650.1,3650.0,0.27404]
[1736148918252,0.83733,3650.1,3649.9,0.27404]
[1736148918550,0.83733,3650.1,3649.8,2.19553811]
[1736148918840,0.83733,3650.1,3649.9,0.27404]
[1736148919238,0.5633,3650.1,3649.8,2.19553811]
[1736148919438,0.27404,3650.0,3649.8,2.46957811]
[1736148920145,0.5633,3650.1,3649.8,2.19553811]
[1736148920346,0.83733,3650.1,3650.0,0.27404]
[1736148921345,0.5633,3650.1,3649.8,2.19553811]
[1736148921645,0.83733,3650.1,3650.0,0.27404]
[1736148923049,3.2078,3650.5,3649.8,2.19553811]
[1736148923343,3.2078,3650.5,3649.7,0.5596]
[1736148923344,3.2078,3650.5,3650.4,0.27401]
[1736148923546,3.18943256,3650.8,3650.2,2.19553811]
[1736148923745,3.18943256,3650.8,3650.7,2.46951811]
[1736148924449,4.02337,3650.9,3650.7,2.46951811]
[1736148924450,4.02337,3650.9,3650.8,0.27398]
[1736148924650,4.02337,3650.9,3650.7,2.46951811]
[1736148924651,0.27398,3650.8,3650.7,2.46951811]
[1736148924946,3.7494,3650.9,3650.4,0.5117]
[1736148924947,0.27399,3650.7,3650.6,0.27399]
[1736148925146,3.7494,3650.9,3650.4,2.70723811]
[1736148925340,3.7494,3650.9,3650.5,0.274]
[1736148925341,0.274,3650.6,3650.5,0.274]
[1736148925537,3.7494,3650.9,3650.4,2.70723811]
[1736148925738,0.27401,3650.4,3650.3,0.78301]
[1736148926044,0.27401,3650.4,3650.3,0.509]
[1736148926348,0.27401,3650.3,3650.2,0.27402]
[1736148927144,0.81901,3650.4,3650.3,0.27401]
[1736148927750,0.545,3650.4,3650.3,0.27401]
[1736148927947,3.2078,3650.5,3650.4,0.27401]
[1736148928153,3.2078,3650.5,3650.4,2.46954811]
[1736148928653,3.48176,3651.0,3650.9,0.27397]
[1736148929349,0.27398,3650.9,3650.8,0.27397]
[1736148929651,3.2078,3651.0,3650.7,2.19553811]
[1736148929951,0.27399,3650.6,3650.5,0.83019]
[1736148930455,3.2078,3651.0,3650.5,0.5562]
[1736148930641,0.27399,3650.7,3650.6,0.27399]
[1736148933851,0.27399,3650.6,3650.5,0.83019]
[1736148934841,0.27399,3650.7,3650.6,0.27399]
[1736148935353,0.27399,3650.6,3650.5,0.83019]
[1736148936350,0.27399,3650.7,3650.6,0.27399]
[1736148937254,0.27398,3650.8,3650.7,0.27398]
[1736148937448,3.48177,3651.0,3650.9,0.27397]
[1736148937647,3.2078,3651.0,3650.9,0.27397]
[1736148937852,3.48176,3651.0,3650.9,0.27397]
[1736148940254,0.27397,3650.9,3650.8,0.27398]
[1736148940850,1.1018,3651.1,3650.7,2.19553811]
[1736148941050,0.27398,3650.8,3650.7,2.46951811]
[1736148943049,3.2078,3651.0,3650.7,2.19553811]
[1736148943353,0.27398,3650.9,3650.8,0.27397]
[1736148944057,3.2078,3651.0,3650.7,2.19553811]
[1736148944356,0.27398,3650.8,3650.7,2.46951811]
[1736148944653,0.27398,3650.8,3650.7,2.19553811]
[1736148944854,0.27399,3650.6,3650.5,0.8302]
[1736148945451,0.27399,3650.6,3650.5,0.5562]
[1736148945844,0.27399,3650.6,3650.5,0.8302]
[1736148946355,0.274,3650.6,3650.5,0.274]
[1736148947049,0.27401,3650.3,3650.2,0.5286]
[1736148947252,0.27402,3650.2,3650.1,6.47419454]
[1736148947457,0.27402,3650.2,3650.1,4.27865643]